[Event "Early-Titled-Tuesday-Blitz-March-26-2024"]
[Site "Chess.com"]
[Date "2024.03.26"]
[Round "2"]
[White "Kirill_Klukin"]
[Black "masnyszachistaaa"]
[Result "1-0"]
[WhiteElo "2845"]
[BlackElo "2569"]
[TimeControl "180+1"]
[EndTime "8:18:09 PDT"]
[Termination "Kirill_Klukin won by checkmate"]

1. Nf3 {[%clk 0:03:00.9]} 1... c5 {[%clk 0:02:57.4]} 2. e3 {[%clk 0:03:00.7]}
2... Nf6 {[%clk 0:02:51.3]} 3. b3 {[%clk 0:02:58.7]} 3... e6 {[%clk 0:02:47]} 4.
Bb2 {[%clk 0:02:58.7]} 4... Nc6 {[%clk 0:02:43.3]} 5. Be2 {[%clk 0:02:57.8]}
5... d5 {[%clk 0:02:42.2]} 6. O-O {[%clk 0:02:47]} 6... Be7 {[%clk 0:02:39.3]}
7. d4 {[%clk 0:02:33.9]} 7... O-O {[%clk 0:02:36.6]} 8. c4 {[%clk 0:02:29.8]}
8... b6 {[%clk 0:02:33]} 9. cxd5 {[%clk 0:02:29.9]} 9... Nxd5 {[%clk 0:02:31.7]}
10. Nbd2 {[%clk 0:02:25.5]} 10... Bb7 {[%clk 0:02:31.5]} 11. Rc1 {[%clk
0:02:25.5]} 11... cxd4 {[%clk 0:02:29.4]} 12. Nxd4 {[%clk 0:02:23.8]} 12... Nxd4
{[%clk 0:02:29.2]} 13. Bxd4 {[%clk 0:02:24.7]} 13... Ba3 {[%clk 0:02:29.4]} 14.
Ra1 {[%clk 0:02:12.9]} 14... Qe7 {[%clk 0:02:17.3]} 15. Nc4 {[%clk 0:02:11.1]}
15... Bb4 {[%clk 0:02:16.5]} 16. Qc2 {[%clk 0:02:00.4]} 16... Qg5 {[%clk
0:02:00.4]} 17. Bf3 {[%clk 0:01:32.4]} 17... Rac8 {[%clk 0:01:53.6]} 18. a3
{[%clk 0:01:22]} 18... Be7 {[%clk 0:01:46.2]} 19. Qe2 {[%clk 0:01:21.4]} 19...
b5 {[%clk 0:01:28.8]} 20. Na5 {[%clk 0:01:12.3]} 20... Nc3 {[%clk 0:01:26.4]}
21. Bxc3 {[%clk 0:01:08.5]} 21... Bxf3 {[%clk 0:01:26.5]} 22. Qxf3 {[%clk
0:01:09.4]} 22... Rxc3 {[%clk 0:01:26.7]} 23. b4 {[%clk 0:01:09.4]} 23... Rfc8
{[%clk 0:01:17.5]} 24. Rfd1 {[%clk 0:01:09.1]} 24... Qf6 {[%clk 0:01:11.9]} 25.
Qb7 {[%clk 0:00:43.7]} 25... R3c7 {[%clk 0:00:54.4]} 26. Qxb5 {[%clk 0:00:42.5]}
26... Rc2 {[%clk 0:00:54.2]} 27. Qf1 {[%clk 0:00:33.7]} 27... Qb2 {[%clk
0:00:41.6]} 28. g3 {[%clk 0:00:30.4]} 28... Bf6 {[%clk 0:00:29]} 29. Rdb1 {[%clk
0:00:19.5]} 29... Qc3 {[%clk 0:00:28.9]} 30. Rd1 {[%clk 0:00:17.2]} 30... h5
{[%clk 0:00:28.4]} 31. h4 {[%clk 0:00:17]} 31... Be5 {[%clk 0:00:25]} 32. Qg2
{[%clk 0:00:10.5]} 32... Re2 {[%clk 0:00:18.3]} 33. Rab1 {[%clk 0:00:09.9]}
33... Qc2 {[%clk 0:00:17.1]} 34. Rf1 {[%clk 0:00:09.1]} 34... Qa2 {[%clk
0:00:16.9]} 35. Nb3 {[%clk 0:00:09.4]} 35... Rcc2 {[%clk 0:00:16.4]} 36. Nd4
{[%clk 0:00:09.9]} 36... Bxd4 {[%clk 0:00:15.6]} 37. exd4 {[%clk 0:00:10.8]}
37... Rxf2 {[%clk 0:00:14.4]} 38. Rxf2 {[%clk 0:00:10.5]} 38... Qxb1+ {[%clk
0:00:14.1]} 39. Kh2 {[%clk 0:00:10.8]} 39... Rc1 {[%clk 0:00:12.6]} 40. Qf3
{[%clk 0:00:09.5]} 40... f6 {[%clk 0:00:11.5]} 41. d5 {[%clk 0:00:10.1]} 41...
exd5 {[%clk 0:00:10]} 42. Qxd5+ {[%clk 0:00:11]} 42... Kh8 {[%clk 0:00:05.2]}
43. Qxh5+ {[%clk 0:00:10.9]} 43... Kg8 {[%clk 0:00:05.5]} 44. Qe8+ {[%clk
0:00:11.6]} 44... Kh7 {[%clk 0:00:05.8]} 45. Qh5+ {[%clk 0:00:12.4]} 45... Kg8
{[%clk 0:00:06.3]} 46. Qf3 {[%clk 0:00:13.2]} 46... Qa1 {[%clk 0:00:04.5]} 47.
Re2 {[%clk 0:00:13]} 47... Qb1 {[%clk 0:00:02.8]} 48. Qd5+ {[%clk 0:00:12.3]}
48... Kh7 {[%clk 0:00:02.8]} 49. Qh5+ {[%clk 0:00:12.9]} 49... Kg8 {[%clk
0:00:02.7]} 50. Re8# {[%clk 0:00:13.7]} 1-0

[Event "Early-Titled-Tuesday-Blitz-March-26-2024"]
[Site "Chess.com"]
[Date "2024.03.26"]
[Round "2"]
[White "kritipatel"]
[Black "DinaBelenkaya"]
[Result "0-1"]
[WhiteElo "2176"]
[BlackElo "2483"]
[TimeControl "180+1"]
[EndTime "8:18:10 PDT"]
[Termination "DinaBelenkaya won by resignation"]

1. e4 {[%clk 0:03:00.9]} 1... c6 {[%clk 0:02:55.7]} 2. d4 {[%clk 0:03:00.8]}
2... d5 {[%clk 0:02:54.6]} 3. exd5 {[%clk 0:03:01.3]} 3... cxd5 {[%clk
0:02:55.5]} 4. Bd3 {[%clk 0:03:01.5]} 4... Nc6 {[%clk 0:02:55.6]} 5. c3 {[%clk
0:03:02.1]} 5... Nf6 {[%clk 0:02:55]} 6. Bf4 {[%clk 0:03:02.2]} 6... g6 {[%clk
0:02:55.1]} 7. Nf3 {[%clk 0:03:00.6]} 7... Bg7 {[%clk 0:02:54.2]} 8. O-O {[%clk
0:03:00.1]} 8... O-O {[%clk 0:02:50.3]} 9. Ne5 {[%clk 0:02:53.1]} 9... Bf5
{[%clk 0:02:45.6]} 10. Re1 {[%clk 0:02:43.3]} 10... Bxd3 {[%clk 0:02:33.5]} 11.
Qxd3 {[%clk 0:02:42.7]} 11... Ne4 {[%clk 0:02:34.4]} 12. Nd2 {[%clk 0:02:33.9]}
12... Nxe5 {[%clk 0:02:24.4]} 13. Bxe5 {[%clk 0:02:31.1]} 13... f6 {[%clk
0:02:23.6]} 14. Nxe4 {[%clk 0:01:39.8]} 14... dxe4 {[%clk 0:02:12]} 15. Qc4+
{[%clk 0:01:39.2]} 15... Kh8 {[%clk 0:02:11.2]} 16. Bg3 {[%clk 0:01:37.9]} 16...
f5 {[%clk 0:02:07.9]} 17. Bh4 {[%clk 0:01:35.6]} 17... Qd6 {[%clk 0:02:04.4]}
18. f3 {[%clk 0:01:33]} 18... exf3 {[%clk 0:02:01.3]} 19. Bxe7 {[%clk
0:01:30.5]} 19... f2+ {[%clk 0:01:57.8]} 20. Kxf2 {[%clk 0:01:21.4]} 20... Qxh2
{[%clk 0:01:57.6]} 21. Bxf8 {[%clk 0:01:16.8]} 21... Rxf8 {[%clk 0:01:53.4]} 22.
d5 {[%clk 0:01:14.2]} 22... Bf6 {[%clk 0:01:47.9]} 23. Rh1 {[%clk 0:01:11.4]}
23... Bh4+ {[%clk 0:01:37.1]} 24. Kf3 {[%clk 0:01:08.6]} 24... Qg3+ {[%clk
0:01:32.5]} 25. Ke2 {[%clk 0:01:06.2]} 25... Qxg2+ {[%clk 0:01:31.7]} 26. Kd3
{[%clk 0:01:00.9]} 26... Qf3+ {[%clk 0:01:25.5]} 27. Kc2 {[%clk 0:01:00.7]}
27... Qf2+ {[%clk 0:01:18]} 28. Kb3 {[%clk 0:00:59.5]} 28... Be7 {[%clk
0:01:01.5]} 29. Rae1 {[%clk 0:00:43.6]} 29... Qb6+ {[%clk 0:00:59.2]} 30. Kc2
{[%clk 0:00:41.8]} 30... Bf6 {[%clk 0:00:41.5]} 31. Re6 {[%clk 0:00:38.4]} 31...
Qf2+ {[%clk 0:00:37.8]} 32. Kb3 {[%clk 0:00:38.5]} 32... a6 {[%clk 0:00:34.5]}
33. Qc7 {[%clk 0:00:37.8]} 33... h5 {[%clk 0:00:27.7]} 34. Qd6 {[%clk
0:00:30.4]} 34... Kg7 {[%clk 0:00:23.5]} 35. Qd7+ {[%clk 0:00:18.6]} 35... Rf7
{[%clk 0:00:23.6]} 36. Qc8 {[%clk 0:00:17.7]} 36... Qf3 {[%clk 0:00:21.5]} 37.
Qc4 {[%clk 0:00:16.8]} 37... Qxh1 {[%clk 0:00:20.3]} 38. d6 {[%clk 0:00:16]}
38... Qc6 {[%clk 0:00:19.1]} 39. Qd3 {[%clk 0:00:13.1]} 39... Qb5+ {[%clk
0:00:18.8]} 40. Qxb5 {[%clk 0:00:12.5]} 40... axb5 {[%clk 0:00:19.7]} 41. Kb4
{[%clk 0:00:12.1]} 41... h4 {[%clk 0:00:20.1]} 42. Kxb5 {[%clk 0:00:12]} 42...
h3 {[%clk 0:00:20.5]} 43. Re1 {[%clk 0:00:12.6]} 43... h2 {[%clk 0:00:19.3]} 44.
Rh1 {[%clk 0:00:13.2]} 44... Be5 {[%clk 0:00:19.8]} 45. Kc5 {[%clk 0:00:12.5]}
45... Rd7 {[%clk 0:00:19.7]} 46. Kd5 {[%clk 0:00:12.9]} 46... Bxd6 {[%clk
0:00:19.1]} 47. Ke6 {[%clk 0:00:13.6]} 47... Rd8 {[%clk 0:00:19.6]} 48. c4
{[%clk 0:00:13.4]} 48... Bg3 {[%clk 0:00:17.9]} 49. b3 {[%clk 0:00:14.3]} 49...
Rd2 {[%clk 0:00:17.9]} 50. Ke7 {[%clk 0:00:12.4]} 50... Re2+ {[%clk 0:00:18.3]}
51. Kd8 {[%clk 0:00:12]} 51... Rg2 {[%clk 0:00:19.2]} 52. c5 {[%clk 0:00:10.1]}
52... Rg1 {[%clk 0:00:19.5]} 53. Rxg1 {[%clk 0:00:10.5]} 53... hxg1=Q {[%clk
0:00:20.4]} 0-1

[Event "Early-Titled-Tuesday-Blitz-March-26-2024"]
[Site "Chess.com"]
[Date "2024.03.26"]
[Round "2"]
[White "AGW2016"]
[Black "Massakru"]
[Result "1/2-1/2"]
[WhiteElo "2543"]
[BlackElo "2365"]
[TimeControl "180+1"]
[EndTime "8:18:11 PDT"]
[Termination "Game drawn - insufficient material"]

1. d4 {[%clk 0:02:58.5]} 1... Nf6 {[%clk 0:02:59.8]} 2. Nc3 {[%clk 0:02:58.5]}
2... d5 {[%clk 0:02:53.1]} 3. Bf4 {[%clk 0:02:57.3]} 3... c6 {[%clk 0:02:52.9]}
4. e3 {[%clk 0:02:52.5]} 4... Bf5 {[%clk 0:02:52.7]} 5. Bd3 {[%clk 0:02:52.6]}
5... Bg6 {[%clk 0:02:51.3]} 6. Nf3 {[%clk 0:02:53.1]} 6... Nbd7 {[%clk
0:02:50.1]} 7. O-O {[%clk 0:02:53.6]} 7... e6 {[%clk 0:02:49.7]} 8. Qe2 {[%clk
0:02:50.3]} 8... Be7 {[%clk 0:02:48.3]} 9. e4 {[%clk 0:02:50.6]} 9... dxe4
{[%clk 0:02:47.9]} 10. Nxe4 {[%clk 0:02:50.3]} 10... Nxe4 {[%clk 0:02:47.8]} 11.
Bxe4 {[%clk 0:02:51.2]} 11... Nf6 {[%clk 0:02:46.6]} 12. Bxg6 {[%clk 0:02:51]}
12... hxg6 {[%clk 0:02:46.9]} 13. h3 {[%clk 0:02:50.5]} 13... Qd5 {[%clk
0:02:40.9]} 14. c3 {[%clk 0:02:50]} 14... Qe4 {[%clk 0:02:33.2]} 15. Qxe4 {[%clk
0:02:47.7]} 15... Nxe4 {[%clk 0:02:34.1]} 16. Rfe1 {[%clk 0:02:48.2]} 16... Nf6
{[%clk 0:02:33.8]} 17. Ne5 {[%clk 0:02:48.4]} 17... Nd7 {[%clk 0:02:31.5]} 18.
Nc4 {[%clk 0:02:48.1]} 18... Nb6 {[%clk 0:02:26.8]} 19. Nd6+ {[%clk 0:02:48.3]}
19... Bxd6 {[%clk 0:02:26.2]} 20. Bxd6 {[%clk 0:02:49.2]} 20... Nc4 {[%clk
0:02:25.8]} 21. Bg3 {[%clk 0:02:47.9]} 21... O-O-O {[%clk 0:02:19.8]} 22. b3
{[%clk 0:02:47.5]} 22... Na3 {[%clk 0:02:12.9]} 23. Rad1 {[%clk 0:02:46.3]}
23... Nb5 {[%clk 0:02:11.4]} 24. Rd3 {[%clk 0:02:44.9]} 24... c5 {[%clk
0:02:08.8]} 25. Red1 {[%clk 0:02:44.5]} 25... cxd4 {[%clk 0:02:08.2]} 26. cxd4
{[%clk 0:02:31.9]} 26... Kd7 {[%clk 0:01:57.6]} 27. d5 {[%clk 0:02:31.5]} 27...
Ke7 {[%clk 0:01:45.6]} 28. a4 {[%clk 0:02:28.5]} 28... Na3 {[%clk 0:01:37.5]}
29. dxe6 {[%clk 0:02:15]} 29... Rxd3 {[%clk 0:01:36.9]} 30. Rxd3 {[%clk
0:02:15.1]} 30... Kxe6 {[%clk 0:01:36.2]} 31. Rd6+ {[%clk 0:02:03.8]} 31... Ke7
{[%clk 0:01:28.6]} 32. Rd2 {[%clk 0:02:04.1]} 32... Ke6 {[%clk 0:01:27.3]} 33.
Re2+ {[%clk 0:01:33.7]} 33... Kd7 {[%clk 0:01:22.6]} 34. Rd2+ {[%clk 0:01:24.1]}
34... Ke6 {[%clk 0:01:22.6]} 35. Kf1 {[%clk 0:01:17.5]} 35... Rc8 {[%clk
0:01:21.6]} 36. Ke2 {[%clk 0:01:17.7]} 36... Rc2 {[%clk 0:01:13.3]} 37. Rxc2
{[%clk 0:01:16]} 37... Nxc2 {[%clk 0:01:14.2]} 38. Kd3 {[%clk 0:01:16.4]} 38...
Nb4+ {[%clk 0:01:13.1]} 39. Kc4 {[%clk 0:01:16.8]} 39... Nc6 {[%clk 0:01:12.8]}
40. b4 {[%clk 0:01:16.9]} 40... a6 {[%clk 0:01:10.9]} 41. b5 {[%clk 0:01:17]}
41... axb5+ {[%clk 0:01:09.6]} 42. Kxb5 {[%clk 0:01:17.5]} 42... Kd7 {[%clk
0:01:08.7]} 43. Kb6 {[%clk 0:01:15.8]} 43... Kc8 {[%clk 0:01:08.8]} 44. Bd6
{[%clk 0:01:16.5]} 44... f6 {[%clk 0:01:04.7]} 45. Bf8 {[%clk 0:01:15.7]} 45...
Ne5 {[%clk 0:00:42.6]} 46. Bxg7 {[%clk 0:01:09.8]} 46... Nd7+ {[%clk 0:00:42.6]}
47. Kb5 {[%clk 0:01:09.5]} 47... Kd8 {[%clk 0:00:40.7]} 48. Bh6 {[%clk
0:00:55.3]} 48... g5 {[%clk 0:00:39.9]} 49. f4 {[%clk 0:00:54.8]} 49... gxf4
{[%clk 0:00:36.8]} 50. Bxf4 {[%clk 0:00:54.9]} 50... Ke7 {[%clk 0:00:36.9]} 51.
g4 {[%clk 0:00:54.3]} 51... Ke6 {[%clk 0:00:36.7]} 52. h4 {[%clk 0:00:54.7]}
52... Kd5 {[%clk 0:00:35.1]} 53. h5 {[%clk 0:00:54.1]} 53... Ke6 {[%clk
0:00:33.5]} 54. h6 {[%clk 0:00:53.7]} 54... Kf7 {[%clk 0:00:33.8]} 55. Kc4
{[%clk 0:00:51.9]} 55... Kg6 {[%clk 0:00:33.4]} 56. Kd5 {[%clk 0:00:52.6]} 56...
Nb6+ {[%clk 0:00:31.1]} 57. Kd4 {[%clk 0:00:32.9]} 57... Nxa4 {[%clk 0:00:31.2]}
58. Kc4 {[%clk 0:00:31]} 58... Nb6+ {[%clk 0:00:30.4]} 59. Kc5 {[%clk
0:00:30.7]} 59... Nd7+ {[%clk 0:00:30.3]} 60. Kd6 {[%clk 0:00:31.3]} 60... Nf8
{[%clk 0:00:28.4]} 61. Be3 {[%clk 0:00:30.5]} 61... b5 {[%clk 0:00:26.4]} 62.
Kc5 {[%clk 0:00:30.2]} 62... f5 {[%clk 0:00:23.4]} 63. g5 {[%clk 0:00:28.7]}
63... Ne6+ {[%clk 0:00:18.4]} 64. Kxb5 {[%clk 0:00:28.9]} 64... f4 {[%clk
0:00:18.8]} 65. Bxf4 {[%clk 0:00:29.3]} 65... Nxf4 {[%clk 0:00:18.9]} 66. h7
{[%clk 0:00:29.4]} 66... Kxh7 {[%clk 0:00:19]} 67. g6+ {[%clk 0:00:30.3]} 67...
Kxg6 {[%clk 0:00:19.2]} 1/2-1/2

[Event "Early-Titled-Tuesday-Blitz-March-26-2024"]
[Site "Chess.com"]
[Date "2024.03.26"]
[Round "2"]
[White "Orest_Vovk"]
[Black "suyu28"]
[Result "0-1"]
[WhiteElo "2568"]
[BlackElo "2843"]
[TimeControl "180+1"]
[EndTime "8:18:12 PDT"]
[Termination "suyu28 won by resignation"]

1. g4 {[%clk 0:03:00.9]} 1... e5 {[%clk 0:02:55]} 2. g5 {[%clk 0:03:00.1]} 2...
Qxg5 {[%clk 0:02:52]} 3. d4 {[%clk 0:02:59.9]} 3... Qe7 {[%clk 0:02:51.8]} 4.
dxe5 {[%clk 0:03:00.1]} 4... Qxe5 {[%clk 0:02:51.8]} 5. Nf3 {[%clk 0:03:00.3]}
5... Qe7 {[%clk 0:02:51.5]} 6. Nc3 {[%clk 0:02:59.9]} 6... c6 {[%clk 0:02:51.7]}
7. Bg5 {[%clk 0:02:58.4]} 7... Nf6 {[%clk 0:02:49.5]} 8. Qd4 {[%clk 0:02:56.7]}
8... h6 {[%clk 0:02:38.4]} 9. Bh4 {[%clk 0:02:50]} 9... d5 {[%clk 0:02:31.4]}
10. O-O-O {[%clk 0:02:46.9]} 10... Bf5 {[%clk 0:02:20.5]} 11. e4 {[%clk
0:02:25.9]} 11... dxe4 {[%clk 0:02:13.3]} 12. Ne5 {[%clk 0:02:19.5]} 12... g5
{[%clk 0:01:59.4]} 13. Bg3 {[%clk 0:02:18.4]} 13... Bg7 {[%clk 0:02:00]} 14. Bc4
{[%clk 0:02:05.4]} 14... O-O {[%clk 0:01:54.5]} 15. h4 {[%clk 0:01:43.8]} 15...
Nh5 {[%clk 0:01:45.4]} 16. Nxf7 {[%clk 0:01:32]} 16... Bxd4 {[%clk 0:01:26.6]}
17. Nxh6+ {[%clk 0:01:20.6]} 17... Kg7 {[%clk 0:01:17.4]} 18. Rxd4 {[%clk
0:01:15.5]} 18... Nxg3 {[%clk 0:01:10.5]} 19. fxg3 {[%clk 0:01:13.1]} 19... Kxh6
{[%clk 0:01:08.7]} 20. hxg5+ {[%clk 0:01:13]} 20... Kg7 {[%clk 0:01:06.7]} 21.
Ne2 {[%clk 0:01:09.7]} 21... c5 {[%clk 0:01:02.1]} 22. Rd5 {[%clk 0:01:02.3]}
22... Nc6 {[%clk 0:00:34.7]} 23. Nf4 {[%clk 0:01:00.1]} 23... Bg4 {[%clk
0:00:35]} 24. g6 {[%clk 0:00:48.4]} 24... Rh8 {[%clk 0:00:32.6]} 25. Re1 {[%clk
0:00:48.4]} 25... Rad8 {[%clk 0:00:29.5]} 26. Rxd8 {[%clk 0:00:38.6]} 26... Rxd8
{[%clk 0:00:27.5]} 27. c3 {[%clk 0:00:29]} 27... a6 {[%clk 0:00:19.9]} 28. Rh1
{[%clk 0:00:19.1]} 28... Rh8 {[%clk 0:00:19.5]} 29. Rf1 {[%clk 0:00:18.2]} 29...
Ne5 {[%clk 0:00:16.9]} 30. Bd5 {[%clk 0:00:13.8]} 30... e3 {[%clk 0:00:12.5]}
31. Re1 {[%clk 0:00:11.5]} 31... e2 {[%clk 0:00:12.5]} 32. Be4 {[%clk
0:00:11.6]} 32... c4 {[%clk 0:00:10]} 33. Kc2 {[%clk 0:00:11.2]} 33... b5 {[%clk
0:00:09.6]} 34. Nd5 {[%clk 0:00:11.5]} 34... Qg5 {[%clk 0:00:08.8]} 35. Nf4
{[%clk 0:00:10.7]} 35... Rd8 {[%clk 0:00:09.2]} 36. Rh1 {[%clk 0:00:09.8]} 36...
Rh8 {[%clk 0:00:08.6]} 37. Re1 {[%clk 0:00:08]} 37... Bf5 {[%clk 0:00:09.1]} 38.
Bxf5 {[%clk 0:00:06.8]} 38... Qxf5+ {[%clk 0:00:09.7]} 39. Kd2 {[%clk
0:00:07.3]} 39... Rd8+ {[%clk 0:00:08.8]} 40. Ke3 {[%clk 0:00:07.3]} 40... Ng4+
{[%clk 0:00:09.2]} 41. Kf3 {[%clk 0:00:07.2]} 41... Ne5+ {[%clk 0:00:08.9]} 42.
Ke3 {[%clk 0:00:07.3]} 42... Nd3 {[%clk 0:00:09.5]} 43. Rxe2 {[%clk 0:00:05.7]}
43... Nxf4 {[%clk 0:00:09.7]} 44. gxf4 {[%clk 0:00:04.6]} 44... Rd3+ {[%clk
0:00:10.4]} 45. Kf2 {[%clk 0:00:04.2]} 45... Qxf4+ {[%clk 0:00:11.2]} 46. Ke1
{[%clk 0:00:04.9]} 46... Qc1+ {[%clk 0:00:10.5]} 0-1

[Event "Early-Titled-Tuesday-Blitz-March-26-2024"]
[Site "Chess.com"]
[Date "2024.03.26"]
[Round "2"]
[White "klimkoj"]
[Black "MalyDominator"]
[Result "0-1"]
[WhiteElo "2818"]
[BlackElo "2581"]
[TimeControl "180+1"]
[EndTime "8:18:12 PDT"]
[Termination "MalyDominator won on time"]

1. Nf3 {[%clk 0:03:00.9]} 1... Nf6 {[%clk 0:02:54.1]} 2. g3 {[%clk 0:02:59.9]}
2... g6 {[%clk 0:02:52]} 3. Bg2 {[%clk 0:03:00.3]} 3... Bg7 {[%clk 0:02:52.6]}
4. O-O {[%clk 0:03:00.4]} 4... O-O {[%clk 0:02:53.4]} 5. c4 {[%clk 0:02:59.8]}
5... d6 {[%clk 0:02:53.7]} 6. Nc3 {[%clk 0:02:59]} 6... c5 {[%clk 0:02:50.2]} 7.
d4 {[%clk 0:02:58.7]} 7... Nbd7 {[%clk 0:02:42.1]} 8. b3 {[%clk 0:02:57.2]} 8...
Rb8 {[%clk 0:02:26.4]} 9. Bb2 {[%clk 0:02:55.9]} 9... a6 {[%clk 0:02:27]} 10. a4
{[%clk 0:02:52.6]} 10... b6 {[%clk 0:02:26.7]} 11. d5 {[%clk 0:02:50.1]} 11...
Ne8 {[%clk 0:02:21.2]} 12. e4 {[%clk 0:02:46.4]} 12... Ne5 {[%clk 0:02:18.4]}
13. Nxe5 {[%clk 0:02:30.3]} 13... Bxe5 {[%clk 0:02:19.3]} 14. Qd2 {[%clk
0:02:30.5]} 14... f5 {[%clk 0:02:04.6]} 15. exf5 {[%clk 0:02:28.1]} 15... Bxf5
{[%clk 0:02:03.3]} 16. Rfe1 {[%clk 0:02:27.3]} 16... Nf6 {[%clk 0:01:59.1]} 17.
Rxe5 {[%clk 0:02:02.4]} 17... dxe5 {[%clk 0:01:58.4]} 18. Re1 {[%clk 0:02:02.6]}
18... Qd6 {[%clk 0:01:40.6]} 19. h3 {[%clk 0:01:54.1]} 19... h5 {[%clk 0:01:03]}
20. Qg5 {[%clk 0:01:48.7]} 20... Kh7 {[%clk 0:00:56.9]} 21. Nd1 {[%clk
0:01:35.1]} 21... Nd7 {[%clk 0:00:50.6]} 22. g4 {[%clk 0:01:02.6]} 22... hxg4
{[%clk 0:00:51.5]} 23. hxg4 {[%clk 0:01:03.4]} 23... Bc2 {[%clk 0:00:48.4]} 24.
Qh4+ {[%clk 0:01:00.8]} 24... Kg8 {[%clk 0:00:42.1]} 25. Ne3 {[%clk 0:00:56.5]}
25... Bxb3 {[%clk 0:00:41.5]} 26. Qh6 {[%clk 0:00:33.7]} 26... Qf6 {[%clk
0:00:39.5]} 27. Rf1 {[%clk 0:00:27]} 27... Qg7 {[%clk 0:00:39.4]} 28. Qg5 {[%clk
0:00:26.6]} 28... Bxa4 {[%clk 0:00:37.5]} 29. f4 {[%clk 0:00:26.6]} 29... b5
{[%clk 0:00:36.5]} 30. fxe5 {[%clk 0:00:20.5]} 30... Rxf1+ {[%clk 0:00:36.1]}
31. Bxf1 {[%clk 0:00:21.4]} 31... bxc4 {[%clk 0:00:36.7]} 32. Nxc4 {[%clk
0:00:20.6]} 32... Nf8 {[%clk 0:00:20.7]} 33. Bd3 {[%clk 0:00:13.6]} 33... Rb3
{[%clk 0:00:18.2]} 34. Qd2 {[%clk 0:00:07.3]} 34... Bb5 {[%clk 0:00:16.8]} 35.
Qc2 {[%clk 0:00:06.7]} 35... Bxc4 {[%clk 0:00:15.8]} 36. Bxc4 {[%clk 0:00:06.9]}
36... Rg3+ {[%clk 0:00:15.8]} 37. Kf2 {[%clk 0:00:04.5]} 37... Rxg4 {[%clk
0:00:16.2]} 38. d6+ {[%clk 0:00:03.6]} 38... e6 {[%clk 0:00:16.4]} 39. Qe2
{[%clk 0:00:02.3]} 39... Qf7+ {[%clk 0:00:16.7]} 40. Ke1 {[%clk 0:00:02.5]}
40... Rg1+ {[%clk 0:00:14.3]} 41. Kd2 {[%clk 0:00:02.4]} 41... Qf4+ {[%clk
0:00:14.5]} 42. Kc2 {[%clk 0:00:01.9]} 42... Qf5+ {[%clk 0:00:10.9]} 43. Bd3
{[%clk 0:00:01.8]} 43... Qg5 {[%clk 0:00:11.4]} 0-1